bitfinex/quotes_SOLUSD_20250806
["timestamp","ask_amount","ask_price","bid_price","bid_amount"]
[1754494653328,17.8181303,168.38,168.37,0.2]
[1754494653550,11.87918269,168.38,168.37,0.2]
[1754494653723,17.8181303,168.38,168.37,0.2]
[1754494654446,18.4381303,168.38,168.37,0.2]
[1754494656022,11.87918269,168.38,168.37,0.2]
[1754494656444,37.87918269,168.38,168.37,0.2]
[1754494656629,43.8181303,168.38,168.37,0.2]
[1754494657023,37.87918269,168.38,168.37,0.2]
[1754494657650,29.98119238,168.38,168.37,0.2]
[1754494657849,3.98119238,168.38,168.37,0.2]
[1754494658023,3.98119238,168.4,168.37,0.92]
[1754494658223,11.87918269,168.4,168.38,0.72]
[1754494658451,11.87918269,168.39,168.37,0.2]
[1754494658621,11.87918269,168.38,168.37,0.2]
[1754494659320,26.0,168.39,168.37,0.92]
[1754494659526,3.98649292,168.38,168.37,0.92]
[1754494659846,3.98649292,168.38,168.37,0.2]
[1754494660356,3.98649292,168.38,168.37,0.92]
[1754494660568,3.98649292,168.38,168.37,6.85930035]
[1754494660736,3.98649292,168.41,168.37,6.85930035]
[1754494661080,3.98649292,168.4,168.38,0.72]
[1754494661351,3.98649292,168.39,168.37,14.03729066]
[1754494661644,3.98649292,168.41,168.37,14.03729066]
[1754494661860,11.88448323,168.4,168.37,0.2]
[1754494662025,37.88448323,168.39,168.37,0.2]
[1754494662226,0.03,168.42,168.38,7.89799031]
[1754494662439,4.02137091,168.42,168.39,7.89799031]
[1754494662625,4.02137091,168.42,168.39,5.93854108]
[1754494662838,4.02137091,168.42,168.4,0.72]
[1754494663260,4.02137091,168.42,168.41,0.72]
[1754494663547,4.02137091,168.42,168.41,8.61799031]
[1754494663548,3.30137091,168.42,168.41,8.61799031]
[1754494663755,0.03,168.43,168.41,23.72420588]
[1754494663956,0.03,168.43,168.42,23.72420588]
[1754494664342,0.03,168.43,168.42,24.00852902]
[1754494664544,0.03,168.43,168.42,29.94606612]
[1754494665058,0.03,168.43,168.42,29.66174298]
[1754494665442,0.03,168.43,168.42,21.76375267]
[1754494665750,0.03,168.43,168.42,29.66174298]
[1754494666156,0.03,168.43,168.42,8.61799031]
[1754494666462,0.03,168.43,168.42,0.72]
[1754494666657,0.03,168.43,168.41,56.65584221]
[1754494666658,7.92799031,168.43,168.41,42.82]
[1754494666862,0.03,168.43,168.39,0.72]
[1754494667227,0.03,168.43,168.39,6.65849968]
[1754494667477,8.57799031,168.43,168.37,71.92343014]
[1754494667753,0.03,168.43,168.37,21.96543983]
[1754494668050,7.89799031,168.41,168.37,0.92]
[1754494668368,0.68,168.43,168.37,6.85925386]
[1754494668535,7.89799031,168.41,168.38,0.72]
[1754494669034,7.89799031,168.41,168.37,0.2]
[1754494669231,7.89799031,168.41,168.37,6.13918935]
[1754494669436,7.89799031,168.41,168.37,6.85918935]
[1754494669955,7.89799031,168.4,168.37,0.2]
[1754494670170,7.89799031,168.38,168.37,0.2]
[1754494670532,26.0,168.4,168.37,0.2]
[1754494670828,7.89799031,168.38,168.37,0.2]
[1754494671040,0.65,168.41,168.37,6.13926407]
[1754494671041,7.89799031,168.41,168.37,6.13926407]
[1754494671244,33.89799031,168.41,168.38,0.72]
[1754494671664,33.89799031,168.41,168.37,0.2]
[1754494671864,33.89799031,168.41,168.37,0.92]
[1754494672063,7.89799031,168.4,168.37,0.2]
[1754494672569,7.89799031,168.4,168.37,0.92]
[1754494673067,33.89799031,168.41,168.37,0.92]
[1754494673362,7.89799031,168.4,168.37,0.2]
[1754494673776,34.54799031,168.41,168.37,0.2]
[1754494673985,33.89799031,168.41,168.37,0.92]
[1754494674271,33.89799031,168.41,168.37,6.85910679]
[1754494674844,33.89799031,168.41,168.37,0.92]
[1754494675054,7.89799031,168.4,168.37,0.2]
[1754494675263,7.89799031,168.4,168.37,6.85925941]
[1754494675650,11.89094322,168.4,168.37,6.85925941]
[1754494676463,3.99295291,168.4,168.37,6.85925941]
[1754494676847,7.89799031,168.41,168.37,0.2]
[1754494677055,7.89799031,168.4,168.37,0.2]
[1754494677760,7.89799031,168.4,168.37,6.85928553]
[1754494677761,3.99295291,168.4,168.37,6.85928553]
[1754494678079,3.99295291,168.42,168.39,7.89799031]
[1754494678254,11.92075185,168.43,168.39,0.72]
[1754494678847,7.89799031,168.41,168.37,48.81928553]
[1754494679069,11.89075185,168.4,168.37,48.81928553]
[1754494679372,7.89799031,168.4,168.37,48.81928553]
[1754494679571,4.64321765,168.42,168.37,49.53928553]
[1754494679870,11.89120796,168.42,168.38,0.72]
[1754494680378,0.03,168.43,168.4,7.89799031]
[1754494680556,0.03,168.43,168.42,7.89799031]
[1754494680957,0.03,168.43,168.42,72.38174298]
[1754494682886,0.03,168.43,168.42,56.55552741]
[1754494683050,0.03,168.43,168.42,48.6575371]
[1754494683249,8.60799031,168.43,168.38,64.45516318]
[1754494683501,0.68,168.42,168.37,48.85915744]
[1754494683785,0.03,168.43,168.4,7.89799031]
[1754494683988,0.03,168.43,168.4,0.71]
[1754494684155,0.03,168.43,168.41,0.71]
[1754494684351,0.03,168.43,168.42,23.00420588]
[1754494684556,1e-08,168.43,168.42,23.28852902]
[1754494684766,0.03,168.44,168.42,23.28852902]
[1754494684990,1e-08,168.44,168.43,66.73852902]
[1754494685166,3.99008128,168.52,168.44,15.10621557]
[1754494685375,0.68,168.53,168.48,7.89799031]
[1754494685556,8.57799031,168.52,168.45,0.71]
[1754494685757,4.67008128,168.52,168.47,23.00420588]
[1754494685970,29.99008128,168.54,168.49,7.89799031]
[1754494686260,3.99008128,168.53,168.49,8.60799031]
[1754494686576,3.982221,168.53,168.49,8.60799031]
[1754494687277,26.0,168.54,168.5,5.9347181]
[1754494687480,12.55769469,168.53,168.48,42.74]
[1754494687798,0.68,168.53,168.48,57.28337097]
[1754494687986,0.68,168.53,168.49,7.89799031]
[1754494688152,0.68,168.52,168.46,15.10621557]
[1754494688475,8.57799031,168.52,168.47,50.61799031]
[1754494688878,8.57799031,168.52,168.47,42.72]
[1754494689054,7.89799031,168.5,168.46,42.72]
[1754494689259,7.89799031,168.5,168.45,6.64636599]
[1754494689260,7.89799031,168.5,168.45,15.10621557]
[1754494689572,0.68,168.49,168.45,15.10621557]
[1754494689751,7.89799031,168.5,168.45,15.81621557]
[1754494689952,7.89799031,168.5,168.45,23.71420588]
[1754494690155,7.89799031,168.51,168.45,29.65060246]
[1754494690356,33.89799031,168.51,168.46,8.60799031]
[1754494690761,4.88572116,168.58,168.45,21.04261215]
[1754494690762,158.37799031,168.54,168.48,7.89799031]
[1754494690956,175.8,168.54,168.51,7.89799031]
[1754494691157,0.68,168.57,168.52,8.60799031]
[1754494691366,7.92799031,168.58,168.53,7.89799031]
[1754494691564,0.71,168.58,168.53,8.60799031]
[1754494691958,26.03,168.58,168.53,0.71]
[1754494692153,7.89799031,168.57,168.52,15.10621557]
[1754494692376,8.57799031,168.56,168.52,15.10621557]
[1754494692685,7.89799031,168.57,168.52,23.00420588]
[1754494692885,0.68,168.56,168.52,23.00420588]
[1754494693185,26.0,168.57,168.53,14.54165197]
[1754494693781,26.0,168.57,168.52,21.04011736]
[1754494693782,34.57799031,168.57,168.52,21.04011736]
[1754494693987,0.68,168.56,168.52,15.10621557]
[1754494694191,7.89799031,168.54,168.48,23.00420588]
[1754494694409,7.89799031,168.53,168.49,42.76]
[1754494694557,8.57799031,168.52,168.49,42.76]
[1754494694987,7.89799031,168.5,168.46,42.76]
[1754494695185,7.89799031,168.5,168.46,57.86621557]
[1754494695384,7.89799031,168.49,168.46,42.76]
[1754494695706,8.57799031,168.49,168.46,42.76]
[1754494695874,7.89799031,168.5,168.46,42.76]
[1754494696077,32.61378142,168.53,168.47,0.71]
[1754494696284,149.8,168.52,168.47,0.71]
[1754494696585,7.89799031,168.48,168.46,42.76]
[1754494697104,7.89799031,168.49,168.46,42.76]
[1754494697273,7.89799031,168.48,168.46,42.76]
[1754494697667,8.57799031,168.48,168.46,42.76]
[1754494697869,7.89799031,168.47,168.46,42.76]
[1754494698099,7.89799031,168.47,168.44,57.84621557]
[1754494698520,7.89799031,168.47,168.44,42.74]
[1754494698680,0.68,168.46,168.41,15.10621557]
[1754494699005,31.93473205,168.5,168.42,42.74]
[1754494699006,7.89799031,168.44,168.42,42.74]
[1754494699293,8.57799031,168.43,168.4,0.06]
[1754494699494,33.89799031,168.41,168.4,0.06]
[1754494699892,0.68,168.42,168.4,0.06]
[1754494699893,26.0,168.42,168.4,0.06]
[1754494700200,7.89799031,168.41,168.4,0.06]
[1754494700390,8.57799031,168.41,168.4,0.06]
[1754494700969,42.78,168.45,168.4,0.06]
[1754494701175,33.89799031,168.43,168.4,0.06]
[1754494701482,7.89799031,168.41,168.4,0.06]
[1754494702315,33.89799031,168.41,168.4,0.06]
[1754494702800,26.0,168.41,168.4,0.06]
[1754494702974,7.89799031,168.42,168.4,0.06]
[1754494703175,0.68,168.44,168.41,8.60799031]
[1754494703176,3.97514998,168.44,168.41,8.60799031]
[1754494703497,7.89799031,168.47,168.42,8.60799031]
[1754494703674,33.89799031,168.47,168.43,0.71]
[1754494703874,7.89799031,168.46,168.41,15.10621557]
[1754494704078,34.57799031,168.47,168.41,23.71420588]
[1754494704296,34.57799031,168.47,168.42,0.71]
[1754494704608,33.89799031,168.47,168.42,0.71]
[1754494704975,7.89799031,168.47,168.43,0.71]
[1754494705175,8.57799031,168.47,168.42,5.9375371]
[1754494705372,157.72799031,168.48,168.43,0.71]
[1754494705616,7.92799031,168.48,168.43,15.10621557]
[1754494705903,7.92799031,168.48,168.44,0.71]
[1754494706206,8.60799031,168.48,168.43,43.53]
[1754494706515,7.89799031,168.44,168.43,42.82]
[1754494706679,7.89799031,168.44,168.4,43.57]
[1754494707006,7.89799031,168.46,168.4,51.46799031]
[1754494707191,7.89799031,168.46,168.41,6.64786075]
[1754494707384,26.0,168.46,168.42,0.71]
[1754494707901,34.57799031,168.46,168.41,5.93786075]
[1754494708627,7.89799031,168.45,168.4,0.06]
[1754494708901,7.89799031,168.43,168.4,0.06]
[1754494709109,26.0,168.44,168.41,0.71]
[1754494709110,33.89799031,168.44,168.41,0.71]
[1754494709401,8.57799031,168.43,168.4,0.06]
[1754494709586,7.89799031,168.45,168.4,0.06]
[1754494709790,7.89799031,168.45,168.41,0.71]
[1754494709984,26.68,168.46,168.41,0.71]
[1754494709985,33.89799031,168.46,168.41,0.71]
[1754494710187,33.89799031,168.46,168.42,0.71]
[1754494710392,6.64551381,168.48,168.42,0.71]
[1754494710393,0.71,168.48,168.42,0.71]
[1754494710598,7.89799031,168.45,168.41,26.0]
[1754494710905,8.57799031,168.45,168.41,26.0]
[1754494711404,7.89799031,168.45,168.42,26.0]
[1754494712300,149.8,168.44,168.43,0.71]
[1754494712514,149.8,168.44,168.43,34.60799031]
[1754494713205,149.8,168.44,168.43,26.0]
[1754494713405,149.8,168.44,168.41,74.75782798]
[1754494713611,149.8,168.44,168.41,69.48]
[1754494713780,149.8,168.44,168.41,75.41777819]
[1754494713980,149.8,168.44,168.42,0.66]
[1754494714283,149.8,168.44,168.42,23.66420588]
[1754494714489,149.8,168.44,168.42,15.10621557]
[1754494714907,149.8,168.44,168.41,48.75777819]
[1754494715091,149.8,168.44,168.41,42.82]
[1754494715284,149.8,168.44,168.41,48.75786309]
[1754494715695,149.8,168.44,168.42,15.10621557]
[1754494715899,0.03,168.48,168.45,15.10621557]
[1754494716088,0.03,168.48,168.45,65.76420588]
[1754494716296,0.03,168.48,168.46,0.66]
[1754494716912,0.03,168.48,168.45,57.86621557]
[1754494717412,0.03,168.48,168.45,63.80245595]
[1754494717622,0.03,168.48,168.46,0.66]
[1754494718108,0.03,168.48,168.47,0.66]
[1754494718309,7.89799031,168.56,168.48,15.10621557]
[1754494718514,7.89799031,168.55,168.5,15.10621557]
[1754494718808,7.89799031,168.54,168.5,15.10621557]
[1754494719013,0.72,168.55,168.5,15.10621557]
[1754494719313,0.72,168.54,168.5,15.10621557]
[1754494719615,0.72,168.54,168.5,21.04070324]
[1754494719910,0.72,168.54,168.49,42.76]
[1754494719911,7.89799031,168.53,168.49,42.76]
[1754494720114,7.89799031,168.5,168.42,0.66]
[1754494720284,7.89799031,168.46,168.43,15.10621557]
[1754494720611,7.89799031,168.47,168.43,5.93718458]
[1754494720822,7.89799031,168.47,168.44,0.66]
[1754494721117,7.89799031,168.47,168.43,5.93718458]
[1754494721118,7.89799031,168.47,168.43,21.04340015]
[1754494721409,7.89799031,168.46,168.43,21.04340015]
[1754494722911,3.98269222,168.48,168.44,15.76621557]
[1754494723112,3.98261818,168.51,168.46,15.10621557]
[1754494723293,157.69799031,168.52,168.47,0.66]
[1754494723492,157.69799031,168.52,168.46,23.00420588]
[1754494723493,157.69799031,168.52,168.48,42.84]
[1754494723709,7.89799031,168.51,168.48,42.84]
[1754494723911,0.72,168.51,168.48,42.84]
[1754494724086,0.03,168.51,168.48,48.77538581]
[1754494724416,7.92799031,168.51,168.48,48.77538581]
[1754494725118,0.03,168.51,168.48,49.43538581]
[1754494725916,0.03,168.51,168.5,23.00420588]
[1754494726431,149.8,168.56,168.52,0.28432314]
[1754494726734,0.03,168.58,168.54,23.00420588]
[1754494727226,0.03,168.58,168.55,0.66]
[1754494727432,0.03,168.58,168.56,42.84]
[1754494727599,7.92799031,168.58,168.56,42.84]
[1754494728786,0.03,168.58,168.56,42.84]
[1754494729025,0.03,168.58,168.57,23.66420588]
[1754494730087,0.03,168.58,168.57,21.69846923]
[1754494730285,0.03,168.58,168.57,29.59645954]
[1754494732913,1e-08,168.58,168.57,30.47400804]
[1754494734700,1e-08,168.58,168.57,22.57601773]
[1754494734899,1e-08,168.58,168.57,30.47400804]
[1754494735111,1e-08,168.58,168.57,29.88078268]
[1754494735289,1e-08,168.58,168.57,72.62078268]
[1754494736026,1e-08,168.58,168.57,64.06279237]
[1754494736242,1e-08,168.58,168.57,72.62078268]
[1754494737485,1e-08,168.58,168.57,71.96078268]
[1754494738700,1e-08,168.58,168.57,71.67645954]
[1754494739112,1e-08,168.58,168.57,21.03846923]
[1754494739412,1e-08,168.58,168.57,71.63645954]
[1754494739817,1e-08,168.58,168.57,63.73846923]
[1754494740196,1e-08,168.58,168.57,71.63645954]
[1754494740520,1e-08,168.58,168.57,72.29645954]
[1754494740888,149.80000001,168.58,168.54,4.800071]
[1754494741088,7.89799031,168.56,168.55,42.68]
[1754494741296,0.72,168.57,168.53,15.10621557]
[1754494741297,7.89799031,168.57,168.53,15.10621557]
[1754494741501,149.80000001,168.58,168.54,42.7]
[1754494741707,157.69799032,168.58,168.54,43.36]
[1754494741912,157.69799032,168.58,168.54,42.7]
[1754494741913,158.41799032,168.58,168.54,42.7]
[1754494742219,8.61799031,168.57,168.54,42.7]
[1754494742422,8.61799031,168.56,168.54,42.7]
[1754494742589,8.61799031,168.55,168.54,42.7]
[1754494742789,8.61799031,168.55,168.52,42.7]
[1754494743016,7.89799031,168.53,168.52,42.7]
[1754494743211,7.89799031,168.55,168.52,48.63401376]
[1754494743410,8.60799031,168.55,168.52,42.7]
[1754494743931,7.89799031,168.53,168.52,42.7]
[1754494744295,8.60799031,168.53,168.52,42.7]
[1754494745417,0.71,168.53,168.52,42.7]
[1754494746517,34.60799031,168.56,168.52,48.6338879]
[1754494747032,8.60799031,168.55,168.52,42.7]
[1754494747534,8.60799031,168.55,168.52,48.63386215]
[1754494747724,7.89799031,168.53,168.52,42.7]
[1754494747929,8.60799031,168.53,168.51,42.74]
[1754494748235,8.60799031,168.52,168.51,42.74]
[1754494748721,7.89799031,168.53,168.51,42.74]
[1754494748891,149.8,168.52,168.51,42.74]
[1754494750614,149.8,168.52,168.51,48.67436591]
[1754494750996,149.8,168.52,168.51,42.74]
[1754494751626,150.51,168.52,168.51,42.74]
[1754494751991,158.40799031,168.52,168.51,0.06]
[1754494752217,158.40799031,168.52,168.51,42.7]
[1754494752417,149.8,168.52,168.51,42.7]
[1754494752719,149.8,168.52,168.51,64.46058148]
[1754494752918,149.9,168.59,168.52,15.10621557]
[1754494753120,149.9,168.59,168.57,7.89799031]
[1754494753343,0.1,168.59,168.57,57.88621557]
[1754494753511,0.1,168.59,168.57,72.43645954]
[1754494753920,0.1,168.59,168.57,63.81846923]
[1754494754321,0.1,168.59,168.57,57.88621557]
[1754494754644,0.1,168.59,168.57,63.81846923]
[1754494756223,0.1,168.59,168.57,72.43645954]
[1754494756422,0.1,168.59,168.57,72.72078268]
[1754494756819,0.1,168.59,168.57,72.43645954]
[1754494757023,0.1,168.59,168.57,63.81846923]
[1754494757222,0.1,168.59,168.57,72.39645954]
[1754494757922,0.1,168.59,168.57,63.77846923]
[1754494758126,0.1,168.59,168.57,71.67645954]
[1754494758628,0.1,168.59,168.57,63.77846923]
[1754494760812,0.1,168.59,168.57,72.39645954]
[1754494762144,0.1,168.59,168.57,72.68078268]
[1754494763313,0.1,168.59,168.57,64.78279237]
[1754494763634,0.1,168.59,168.57,64.06279237]
[1754494763843,0.1,168.59,168.57,71.67645954]
[1754494764833,0.1,168.59,168.57,63.77846923]
[1754494765942,8.60799032,168.58,168.53,5.93366166]
[1754494766162,8.60799031,168.57,168.54,15.10621557]
[1754494766339,0.71,168.56,168.54,57.74621557]
[1754494766536,8.60799031,168.55,168.52,0.06]
[1754494766838,8.60799031,168.54,168.53,42.68]
[1754494768259,31.9326382,168.56,168.52,42.74]
[1754494768260,7.89799031,168.55,168.52,42.74]
[1754494768421,0.71,168.54,168.52,42.74]
[1754494768935,7.89799031,168.55,168.52,48.67381259]
[1754494769449,3.98262604,168.56,168.52,42.74]
[1754494769668,1e-08,168.58,168.53,15.82621557]
[1754494769869,1e-08,168.58,168.54,42.82]
[1754494770039,0.71000001,168.58,168.54,42.82]
[1754494770230,8.60799031,168.57,168.54,42.82]
[1754494770632,0.71,168.57,168.54,42.82]
[1754494770839,0.71,168.57,168.54,48.7532806]
[1754494771264,0.71,168.56,168.54,42.82]
[1754494771439,8.60799031,168.55,168.54,42.82]
[1754494771749,8.60799031,168.55,168.52,0.06]
[1754494771948,7.89799031,168.53,168.52,0.06]
[1754494772349,8.60799031,168.53,168.52,0.06]
[1754494774840,0.71,168.53,168.52,0.06]
[1754494775047,1e-08,168.58,168.52,43.6]
[1754494775231,11.88183415,168.58,168.53,15.10621557]
[1754494775549,8.56799031,168.57,168.53,15.10621557]
[1754494776349,1e-08,168.58,168.53,23.72420588]
[1754494776556,7.89799032,168.58,168.54,0.72]
[1754494776754,1e-08,168.58,168.55,15.10621557]
[1754494776930,1e-08,168.58,168.56,5.9326056]
[1754494777839,1e-08,168.58,168.55,63.85907849]
[1754494778656,0.67,168.57,168.55,57.92621557]
[1754494778858,8.56799031,168.56,168.53,42.8]
[1754494779157,7.89799031,168.55,168.53,42.8]
[1754494779653,8.56799031,168.56,168.53,42.8]
[1754494779854,7.89799031,168.55,168.53,42.8]
[1754494781966,7.89799031,168.54,168.53,42.8]
[1754494782339,7.89799031,168.54,168.52,0.06]
[1754494782536,8.56799031,168.53,168.52,0.06]
[1754494782845,149.8,168.57,168.53,0.28432314]
[1754494783045,149.8,168.57,168.56,7.89799031]
[1754494783358,149.8,168.57,168.56,51.41799031]
[1754494784065,149.8,168.57,168.56,57.35059591]
[1754494784563,149.8,168.57,168.56,72.74113462]
[1754494784765,1e-08,168.58,168.57,15.39053871]
[1754494784935,1e-08,168.58,168.57,24.00852902]
[1754494786157,1e-08,168.58,168.57,29.94078268]
[1754494788241,1e-08,168.58,168.57,15.10621557]
[1754494789862,1e-08,168.58,168.57,21.03846923]
[1754494790646,1e-08,168.58,168.57,29.94078268]
[1754494791473,1e-08,168.58,168.57,72.70078268]
[1754494792760,0.1,168.59,168.58,15.39053871]
[1754494792761,1e-08,168.59,168.58,15.39053871]
[1754494793076,1e-08,168.59,168.58,24.00852902]
[1754494794583,1e-08,168.59,168.58,29.94043078]
[1754494797382,1e-08,168.6,168.58,55.94043078]
[1754494797587,1e-08,168.6,168.59,65.98852902]
[1754494797779,1e-08,168.6,168.59,66.70852902]
[1754494798970,1e-08,168.6,168.59,72.64007893]
[1754494799661,1e-08,168.6,168.59,75.01615193]
[1754494799863,0.1,168.65,168.6,15.39053871]
[1754494800185,0.1,168.65,168.64,23.28852902]
[1754494800485,0.1,168.65,168.64,65.94852902]
[1754494800798,0.77,168.65,168.64,15.39053871]
[1754494800975,0.77,168.65,168.64,42.66]
[1754494801371,8.66799031,168.65,168.64,42.66]
[1754494801673,0.77,168.65,168.63,42.68]
[1754494801872,4.75475996,168.65,168.63,42.68]
[1754494802080,0.67,168.64,168.63,42.68]
[1754494803084,0.67,168.64,168.6,28.93527445]
[1754494803085,8.56799031,168.64,168.58,23.00420588]
[1754494803284,0.68,168.63,168.6,15.10621557]
[1754494803461,0.68,168.62,168.61,42.68]
[1754494807475,0.68,168.62,168.6,15.10621557]
[1754494807681,7.89799031,168.61,168.57,15.10621557]
[1754494807873,8.57799031,168.6,168.58,42.64]
[1754494808069,0.68,168.59,168.58,42.64]
[1754494808591,3.98276029,168.63,168.59,15.10621557]
[1754494808759,3.98276029,168.63,168.61,7.89799031]
[1754494808964,0.78,168.65,168.62,23.00420588]
[1754494809165,4.08212691,168.65,168.63,42.64]
[1754494809386,0.78,168.65,168.63,42.64]
[1754494809597,0.68,168.64,168.63,42.64]
[1754494812979,8.57799031,168.64,168.63,42.64]
[1754494813181,0.68,168.64,168.63,42.64]
[1754494813405,4.08212691,168.65,168.63,42.64]
[1754494813773,4.76212691,168.65,168.63,42.64]
[1754494813987,149.8,168.64,168.63,42.64]
[1754494815407,149.83,168.64,168.63,42.64]
[1754494816273,150.51,168.64,168.63,42.64]
[1754494817897,8.60799031,168.64,168.6,0.06]
[1754494818098,7.89799031,168.61,168.6,0.06]
[1754494818403,0.71,168.64,168.6,21.76741367]
[1754494818576,0.03,168.64,168.61,66.29420588]
[1754494818771,0.03,168.64,168.62,0.28432314]
[1754494818992,0.03,168.64,168.63,57.72621557]
[1754494819197,4.01508896,168.64,168.63,57.72621557]
[1754494819385,0.03,168.64,168.63,63.65635848]
[1754494820109,0.03,168.64,168.63,70.77250428]
[1754494820307,0.03,168.64,168.63,57.72621557]
[1754494820500,0.03,168.64,168.63,63.65635848]
[1754494820684,0.03,168.64,168.63,57.72621557]
[1754494821288,0.03,168.64,168.63,42.62]
[1754494821507,6.87182266,168.64,168.63,42.62]
[1754494821682,10.86045261,168.64,168.63,42.62]
[1754494821886,4.69862995,168.64,168.63,42.62]
[1754494822192,10.86045261,168.64,168.63,42.62]
[1754494822394,10.86045261,168.64,168.6,0.06]
[1754494822705,6.16182266,168.61,168.6,0.06]
[1754494822895,10.15045261,168.61,168.6,0.06]
[1754494823101,3.98862995,168.61,168.6,0.06]
[1754494823404,10.83045261,168.61,168.6,0.06]
[1754494823784,4.67083809,168.61,168.6,0.06]
[1754494823977,10.83280216,168.61,168.6,0.06]
[1754494824506,4.6709795,168.61,168.6,0.06]
[1754494824690,36.83280216,168.61,168.6,0.06]
[1754494824876,15.82152653,168.61,168.6,0.06]
[1754494825207,15.82152653,168.61,168.55,0.06]
[1754494825208,26.0,168.58,168.55,0.06]
[1754494825397,6.16182266,168.56,168.55,0.06]
[1754494825588,10.15280216,168.56,168.55,0.06]
[1754494825788,10.83280216,168.56,168.55,0.06]
[1754494826096,26.0,168.53,168.51,0.06]
[1754494826280,84.99462482,168.52,168.44,17.835379]
[1754494826482,6.16182266,168.45,168.44,17.835379]
[1754494826690,14.56030605,168.45,168.44,17.835379]
[1754494827010,26.0,168.44,168.41,0.06]
[1754494827206,9.88932655,168.42,168.37,0.2]
[1754494827387,35.88932655,168.38,168.37,0.2]
[1754494827590,45.81925366,168.38,168.37,0.2]
[1754494827906,46.49925366,168.38,168.37,0.2]
[1754494828107,51.31048716,168.38,168.37,0.2]
[1754494828810,41.42116061,168.38,168.37,0.2]
[1754494829014,51.31048716,168.38,168.37,0.2]
[1754494829226,94.11048716,168.38,168.37,0.2]
[1754494829515,5.93965312,168.36,168.34,0.2]
[1754494829713,29.70928572,168.36,168.34,0.2]
[1754494830009,30.38928572,168.36,168.34,0.2]
[1754494830393,10.61063262,168.36,168.34,0.2]
[1754494830608,53.34932655,168.35,168.34,0.2]
[1754494830810,57.34030605,168.35,168.34,0.2]
[1754494830998,57.34030605,168.35,168.32,0.06]
[1754494830999,26.0,168.33,168.32,0.06]
[1754494831203,35.88932655,168.33,168.32,0.06]
[1754494831524,42.51003824,168.33,168.32,0.06]
[1754494831695,9.88932655,168.26,168.25,0.2]
[1754494832110,10.56932655,168.26,168.25,0.2]
[1754494832290,26.0,168.23,168.16,0.67]
[1754494832633,9.88932655,168.21,168.16,0.67]
[1754494832816,52.76932655,168.22,168.17,9.88932655]
[1754494832989,52.76932655,168.22,168.18,0.67]
[1754494833187,52.76932655,168.22,168.19,0.67]
[1754494833391,9.88932655,168.2,168.15,0.67]
[1754494833585,9.88932655,168.19,168.16,0.67]
[1754494833895,9.88932655,168.22,168.17,16.06053871]
[1754494834099,9.88932655,168.18,168.15,0.67]
[1754494834308,9.88932655,168.17,168.14,15.10621557]
[1754494834493,9.88932655,168.17,168.12,5.94810132]
[1754494834687,9.88932655,168.17,168.14,0.67]
[1754494834887,35.88932655,168.2,168.16,15.10621557]
[1754494835087,52.76932655,168.23,168.18,15.10621557]
[1754494835320,0.72,168.26,168.21,10.17364969]
[1754494835621,11.44930955,168.38,168.21,10.17364969]
[1754494835622,9.88932655,168.32,168.25,25.27986526]
[1754494835831,9.88932655,168.32,168.26,0.67]
[1754494836031,9.88932655,168.31,168.26,10.55932655]
[1754494836331,43.66,168.35,168.27,25.94986526]
[1754494836537,9.88932655,168.32,168.27,16.06053871]
[1754494836730,35.88932655,168.32,168.27,15.39053871]
[1754494837022,43.66,168.35,168.26,9.88932655]
[1754494837023,9.88932655,168.31,168.26,10.17364969]
[1754494837215,9.88932655,168.33,168.29,15.10621557]
[1754494837415,43.0,168.37,168.3,0.67]
[1754494837630,9.88932655,168.35,168.3,6.61167427]
[1754494837796,26.0,168.34,168.3,5.94167427]